fUSD/lending_fUSD_20260319
["ID","MTS","AMOUNT","RATE_DAILY","PERIOD"]
[408550535,1773882633153,-75461.2755,0.00013712,2]
[408550536,1773882633163,-350.0,0.00013712,2]
[408550537,1773882633172,-153.214246,0.00013773,2]
[408550538,1773882633181,-5493.45910815,0.00013777,2]
[408550539,1773882633191,-751.01715648,0.00013789,2]
[408550540,1773882633200,-52517.70871604,0.0001379,2]
[408550541,1773882633210,-2500.0,0.0001379,2]
[408550542,1773882633220,-457.00445567,0.00013792,2]
[408550543,1773882633231,-5744.16187949,0.00013792,2]
[408550544,1773882633240,-153.07499793,0.000138,2]
[408550545,1773882633251,-3700.0,0.000138,5]
[408550546,1773882633260,-49394.84466857,0.00013812,2]
[408550547,1773882633269,-350.0,0.00013821,2]
[408550548,1773882633278,-5744.16187944,0.00013837,2]
[408550549,1773882633288,-687.39221,0.0001385,2]
[408550550,1773882633299,-687.39221,0.0001385,2]
[408550551,1773882633309,-7099.4,0.0001386,2]
[408550552,1773882633319,-5493.45910815,0.00013865,2]
[408550553,1773882633331,-687.39221,0.0001387,2]
[408550554,1773882633341,-501.04208382,0.00013873,2]
[408550555,1773882633352,-333.17705828,0.00013873,2]
[408550556,1773882633363,-500.0,0.00013873,2]
[408550557,1773882633372,-500.0,0.00013873,2]
[408550558,1773882633382,-500.09769254,0.00013873,2]
[408550559,1773882633391,-502.96204522,0.00013873,2]
[408550560,1773882633401,-500.0,0.00013873,2]
[408550561,1773882633411,-500.0,0.00013873,2]
[408550562,1773882633422,-500.24541501,0.00013873,2]
[408550563,1773882633431,-500.0,0.00013873,2]
[408550564,1773882633443,-500.0,0.00013873,2]
[408550565,1773882633454,-500.0,0.00013873,2]
[408550566,1773882633465,-500.0,0.00013873,2]
[408550567,1773882633476,-500.0,0.00013873,2]
[408550568,1773882633486,-167.39950823,0.00013873,2]
[408550569,1773882633497,-223.9,0.00013873,2]
[408550570,1773882633507,-223.9,0.0001388,2]
[408550571,1773882633518,-425.47438113,0.0001388,2]
[408550572,1773882633528,-5744.16187944,0.00013883,2]
[408550573,1773882633537,-500.0,0.00013889,2]
[408550574,1773882633547,-467.87972842,0.00013889,2]
[408550575,1773882633556,-597.96,0.00013889,2]
[408550576,1773882633565,-597.96,0.00013889,2]
[408550577,1773882633575,-597.96,0.00013889,2]
[408550578,1773882633584,-597.96,0.00013889,2]
[408550579,1773882633593,-597.96,0.00013889,2]
[408550580,1773882633602,-597.96,0.00013889,2]
[408550581,1773882633612,-597.96,0.00013889,2]
[408550582,1773882633622,-597.96,0.00013889,2]
[408550583,1773882633631,-597.96,0.00013889,2]
[408550584,1773882633641,-597.96,0.00013889,2]
[408550585,1773882633650,-500.0,0.00013889,2]
[408550586,1773882633659,-500.0,0.00013889,2]
[408550587,1773882633669,-500.0,0.00013889,2]
[408550588,1773882633678,-387.95399196,0.00013889,2]
[408550589,1773882633687,-500.0,0.00013889,2]
[408550590,1773882633696,-500.0,0.00013889,2]
[408550591,1773882633706,-500.0,0.00013889,2]
[408550592,1773882633715,-500.0,0.00013889,2]
[408550593,1773882633724,-563.48196371,0.00013889,2]
[408550594,1773882633733,-306.9393686,0.00013889,2]
[408550595,1773882633742,-193.58232397,0.00013889,2]
[408550596,1773882633752,-500.0,0.00013889,2]
[408550597,1773882633761,-349.97843419,0.00013889,2]
[408550598,1773882633770,-500.0,0.00013889,2]
[408550599,1773882633779,-172.60337726,0.00013889,2]
[408550600,1773882633788,-1072.0,0.0001389,5]
[408550601,1773882633798,-112508.93620115,0.0001389,2]
[408550602,1773882633810,-16696.2459232,0.0001389,2]
[408550603,1773882633821,-70176.06280587,0.0001389,2]
[408550604,1773882633832,-104758.88980351,0.0001389,2]
[408550613,1773882638201,-600.31170502,0.00013792,2]
[408550614,1773882638210,-417.55884304,0.00013888,2]
[408550615,1773882638220,-500.0,0.00013888,2]
[408550616,1773882638229,-376.55659633,0.00013888,2]
[408550617,1773882638238,-500.0,0.00013888,2]
[408550618,1773882638248,-371.69764227,0.00013888,2]
[408550619,1773882638366,-128.30235773,0.00013888,2]
[408550620,1773882638376,-500.0,0.00013888,2]
[408550621,1773882638387,-325.01971259,0.00013888,2]
[408550633,1773882640846,-174.98028741,0.00013888,2]
[408550634,1773882640856,-431.61971399,0.00013888,2]
[408550635,1773882640867,-68.38028601,0.00013888,2]
[408550636,1773882640877,-500.0,0.00013888,2]
[408550637,1773882640886,-500.0,0.00013888,2]
[408550638,1773882640895,-500.0,0.00013888,2]
[408550642,1773882641106,-500.0,0.00013888,2]
[408550643,1773882641120,-500.0,0.00013888,2]
[408550644,1773882641130,-500.0,0.00013888,2]
[408550645,1773882641139,-500.0,0.00013888,2]
[408550646,1773882641148,-500.0,0.00013888,2]
[408550647,1773882641158,-500.0,0.00013888,2]
[408550648,1773882641167,-500.0,0.00013888,2]
[408550649,1773882641177,-500.0,0.00013888,2]
[408550650,1773882641187,-500.0,0.00013888,2]
[408550651,1773882641198,-500.0,0.00013888,2]
[408550652,1773882641209,-500.0,0.00013888,2]
[408550653,1773882641218,-500.0,0.00013888,2]
[408550654,1773882641227,-500.0,0.00013888,2]
[408550655,1773882641236,-500.0,0.00013888,2]
[408550656,1773882641245,-500.0,0.00013888,2]
[408550657,1773882641254,-500.0,0.00013888,2]
[408550658,1773882641264,-500.0,0.00013888,2]
[408550659,1773882641273,-500.0,0.00013888,2]
[408550660,1773882641282,-500.0,0.00013888,2]
[408550661,1773882641291,-500.0,0.00013888,2]
[408550662,1773882641301,-500.0,0.00013888,2]
[408550663,1773882641310,-500.0,0.00013888,2]
[408550664,1773882641320,-500.0,0.00013888,2]
[408550665,1773882641331,-500.0,0.00013888,2]
[408550666,1773882641341,-500.0,0.00013888,2]
[408550667,1773882641350,-500.0,0.00013888,2]
[408550668,1773882641360,-500.0,0.00013888,2]
[408550669,1773882641369,-4325.01971259,0.0001389,2]
[408550670,1773882641381,-709.38704396,0.0001389,2]
[408550684,1773882644741,1213.17,0.00030136,120]
[408550689,1773882646135,-500.0,0.00013811,2]
[408550690,1773882646144,-500.0,0.00013889,2]
[408550691,1773882646154,-500.0,0.00013889,2]
[408550692,1773882646395,50139.36,0.00030136,120]
[408550696,1773882648977,1102.28,0.00030136,120]
[408550697,1773882651191,1262.47,0.00030136,120]
[408550698,1773882652524,204.53623798,0.00030136,120]
[408550699,1773882663803,500.0,0.00030136,120]
[408550700,1773882667637,500.0,0.00030136,120]
[408550701,1773882669309,1767.44,0.00030136,120]
[408550702,1773882670513,500.0,0.00030136,120]
[408550703,1773882675637,500.0,0.00030136,120]
[408550704,1773882681091,500.0,0.00030136,120]
[408550705,1773882687084,1241.72,0.00030136,120]
[408550706,1773882690454,500.0,0.00030136,120]
[408550707,1773882695505,500.0,0.00030136,120]
[408550708,1773882703786,500.0,0.00030136,120]
[408550709,1773882710494,500.0,0.00030136,120]
[408550710,1773882711996,500.0,0.00030136,120]
[408550711,1773882716855,511.93089055,0.00030136,120]
[408550712,1773882721256,500.0,0.00030136,120]
[408550713,1773882723856,738.45,0.00030136,120]
[408550714,1773882725745,500.0,0.00030136,120]
[408550715,1773882730540,500.0,0.00030136,120]
[408550716,1773882732668,717.11,0.00030136,120]
[408550717,1773882738577,1002.16,0.00030136,120]
[408550718,1773882741545,666.87,0.00030136,120]
[408550719,1773882748949,500.0,0.00030136,120]
[408550720,1773882751102,1383.73,0.00030136,120]
[408550721,1773882751865,806.76,0.00030136,120]
[408550722,1773882752617,269.62161135,0.00030136,120]
[408550723,1773882755337,500.0,0.00030136,120]
[408550724,1773882760989,1729.67,0.00030136,120]
[408550725,1773882762013,500.0,0.00030136,120]
[408550726,1773882762485,1643.25,0.00030136,120]
[408550727,1773882762815,579.45,0.00030136,120]
[408550728,1773882766050,728.75,0.00030136,120]
[408550729,1773882769145,609.53,0.00030136,120]
[408550730,1773882769453,434.56,0.00030136,120]
[408550731,1773882773086,2182.06,0.00030136,120]
[408550732,1773882778922,777.09,0.00030136,120]
[408550733,1773882783101,3174.2,0.00030136,120]
[408550734,1773882784232,622.72,0.00030136,120]
[408550735,1773882790694,500.0,0.00030136,120]
[408550736,1773882791349,1048.08,0.00030136,120]
[408550737,1773882792133,500.0,0.00030136,120]
[408550738,1773882793486,500.0,0.00030136,120]
[408550739,1773882794148,1913.94,0.00030136,120]
[408550740,1773882798068,999.75,0.00030136,120]
[408550741,1773882810252,500.0,0.00030136,120]
[408550742,1773882812782,165.91,0.0003,120]
[408550743,1773882823101,500.0,0.00030136,120]
[408550744,1773882826012,500.0,0.00030136,120]
[408550745,1773882827966,186.41986758,0.00030136,120]
[408550746,1773882833655,500.0,0.00030136,120]
[408550747,1773882840305,305.02861563,0.00030136,120]
[408550748,1773882842281,500.0,0.00030136,120]
[408550749,1773882842565,500.0,0.00030136,120]
[408550750,1773882849873,500.0,0.00030136,120]
[408550751,1773882855609,500.0,0.00030136,120]
[408550752,1773882860340,623.05808398,0.00030136,120]
[408550753,1773882867069,1345.78,0.00030136,120]
[408550754,1773882867886,1233.63,0.00030136,120]
[408550755,1773882880396,500.0,0.00030136,120]
[408550756,1773882894094,500.0,0.00030136,120]
[408550757,1773882895799,48050.22,0.00030136,120]
[408550758,1773882899578,500.0,0.00030136,120]
[408550759,1773882901834,500.0,0.00030136,120]
[408550760,1773882906677,500.0,0.00030136,120]
[408550761,1773882914189,500.0,0.00030136,120]
[408550762,1773882916159,500.0,0.00030136,120]
[408550763,1773882921282,500.0,0.00030136,120]
[408550764,1773882935588,500.0,0.00030136,120]
[408550765,1773882943961,500.0,0.00030136,120]
[408550766,1773882944573,500.0,0.00030136,120]
[408550767,1773882944605,500.0,0.00030136,120]
[408550768,1773882950363,687.23,0.00030136,120]
[408550769,1773882974162,1239.83,0.00030136,120]
[408550770,1773882977749,1657.6,0.00030136,120]
[408550771,1773882978791,500.0,0.00030136,120]
[408550772,1773882986677,707.68,0.00030136,120]
[408550773,1773882992983,744.71,0.00030136,120]
[408550774,1773882997950,500.0,0.00030136,120]
[408550775,1773883006462,607.97,0.00030136,120]
[408550776,1773883008174,1834.19,0.00030136,120]
[408550777,1773883010071,773.15,0.00030136,120]
[408550778,1773883011356,500.0,0.00030136,120]
[408550779,1773883011474,584.14,0.00030136,120]
[408550780,1773883013547,500.0,0.00030136,120]
[408550781,1773883021317,555.31,0.00030136,120]
[408550782,1773883033887,2103.71,0.00011507,2]
[408550783,1773883045473,622.51768159,0.00030136,120]
[408550784,1773883055170,500.0,0.00030136,120]
[408550785,1773883067208,500.0,0.00030136,120]
[408550786,1773883090648,500.0,0.00030136,120]
[408550787,1773883095288,500.0,0.00030136,120]
[408550788,1773883101461,500.0,0.00030136,120]
[408550789,1773883113230,1188.18,0.00030136,120]
[408550790,1773883115948,150.43238486,0.00030136,120]
[408550791,1773883117311,969.15,0.00030136,120]
[408550792,1773883120308,296.69839368,0.00030136,120]
[408550793,1773883132822,500.0,0.00030136,120]
[408550794,1773883141266,632.45,0.00030136,120]
[408550795,1773883142951,500.0,0.00030136,120]
[408550796,1773883152703,500.0,0.00030136,120]
[408550797,1773883160209,46048.13,0.00030136,120]
[408550798,1773883177506,500.0,0.00030136,120]
[408550799,1773883184243,500.0,0.00030136,120]
[408550800,1773883184637,522.08,0.00030136,120]
[408550801,1773883184741,500.0,0.00030136,120]
[408550802,1773883190023,658.59,0.00030136,120]
[408550803,1773883203446,678.2,0.00030136,120]
[408550804,1773883206660,1056.35,0.00030136,120]
[408550805,1773883214048,500.0,0.00030136,120]
[408550806,1773883217319,596.51,0.00030136,120]
[408550807,1773883218666,1588.53,0.00030136,120]
[408550808,1773883226687,740.93,0.00030136,120]
[408550809,1773883227837,500.0,0.00030136,120]
[408550810,1773883232769,713.68,0.00030136,120]
[408550811,1773883239065,500.0,0.00030136,120]
[408550812,1773883239381,500.0,0.00030136,120]
[408550813,1773883243226,1189.98,0.00030136,120]
[408550814,1773883247435,1757.77,0.00030136,120]
[408550815,1773883263265,500.0,0.00030136,120]
[408550816,1773883268245,500.0,0.00030136,120]
[408550817,1773883269865,500.0,0.00030136,120]
[408550818,1773883274081,528.21625686,0.00030136,120]
[408550819,1773883276651,-262.43109754,0.00011715,2]
[408550820,1773883276673,-248.0,0.00011954,2]
[408550821,1773883276695,-500.0,0.00012211,2]
[408550822,1773883278733,559.8,0.00030136,120]
[408550823,1773883280895,331.90618584,0.00030136,120]
[408550824,1773883281502,1209.87,0.00030136,120]
[408550825,1773883285746,500.0,0.0003013,120]
[408550826,1773883286448,500.0,0.00030136,120]
[408550827,1773883286483,1774.14,0.00030136,120]
[408550828,1773883295426,639.08,0.00030136,120]
[408550829,1773883302010,500.0,0.00030136,120]
[408550830,1773883302688,500.0,0.00030136,120]
[408550831,1773883303295,500.0,0.00030136,120]
[408550832,1773883309118,569.00455827,0.00030136,120]
[408550833,1773883314839,1574.78,0.00030136,120]
[408550834,1773883319747,500.0,0.00030136,120]
[408550835,1773883325706,2091.14,0.00030136,120]
[408550836,1773883326934,500.0,0.00030136,120]
[408550837,1773883335430,3041.94,0.00030136,120]
[408550838,1773883337393,166.66,0.0001165,2]
[408550839,1773883337640,166.66,0.00011895,2]
[408550840,1773883337844,166.66,0.00012141,2]
[408550841,1773883338058,166.66,0.00012386,2]
[408550842,1773883355032,500.0,0.00030136,120]
[408550843,1773883365264,1326.08,0.00030136,120]
[408550844,1773883366298,44129.46,0.00030136,120]
[408550845,1773883382114,698.39,0.00030136,120]
[408550846,1773883386755,500.0,0.00030136,120]
[408550847,1773883396272,632.01,0.00030136,120]
[408550848,1773883407952,500.0,0.00030136,120]
[408550849,1773883410495,451.19562507,0.00030136,120]
[408550850,1773883415216,500.0,0.00030136,120]
[408550851,1773883423264,1020.53,0.00030136,120]
[408550852,1773883430301,649.94,0.00030136,120]
[408550853,1773883450616,958.09,0.00030136,120]
[408550854,1773883458652,710.06,0.00030136,120]
[408550855,1773883463030,500.0,0.00030136,120]
[408550856,1773883463242,500.0,0.00030136,120]
[408550857,1773883468573,631.15,0.00030136,120]
[408550858,1773883471011,500.0,0.00030136,120]
[408550859,1773883478466,500.0,0.00030136,120]
[408550860,1773883479188,737.99,0.00030136,120]
[408550861,1773883480289,1684.53,0.00030136,120]
[408550862,1773883481929,500.0,0.00030136,120]
[408550863,1773883494359,1522.34,0.00030136,120]
[408550864,1773883494916,500.0,0.00030136,120]
[408550865,1773883498465,500.0,0.00030136,120]
[408550866,1773883500509,500.0,0.00030136,120]
[408550867,1773883507754,500.0,0.00030136,120]
[408550868,1773883508767,536.47,0.00030136,120]
[408550869,1773883535955,500.0,0.00030136,120]
[408550870,1773883538296,500.0,0.00030136,120]
[408550871,1773883543932,500.0,0.00030136,120]
[408550872,1773883546544,500.0,0.00030136,120]
[408550873,1773883549369,1162.62,0.00030136,120]
[408550874,1773883563495,500.0,0.00030136,120]
[408550875,1773883573959,500.0,0.00030136,120]
[408550876,1773883592380,3000.0,0.00030136,120]
[408550877,1773883594297,552.71211604,0.00030136,120]
[408550878,1773883598703,40452.0,0.00030136,120]
[408550879,1773883601117,-250.0,0.00012541,2]
[408550880,1773883601139,-3002.62940394,0.00012583,2]
[408550882,1773883611361,500.0,0.00030136,120]
[408550883,1773883620440,500.0,0.00030136,120]
[408550884,1773883625469,500.0,0.00030136,120]
[408550885,1773883632283,500.0,0.00030136,120]
[408550886,1773883633322,500.0,0.00030136,120]
[408550887,1773883641957,960.4,0.00030136,120]
[408550888,1773883642867,500.0,0.00030136,120]
[408550889,1773883652559,200.36555935,0.00030136,120]
[408550890,1773883654304,500.0,0.00030136,120]
[408550891,1773883657046,582.64,0.00030136,120]
[408550892,1773883660563,500.0,0.00030136,120]
[408550893,1773883674429,622.86,0.00030136,120]
[408550894,1773883678076,208.04557173,0.00030136,120]
[408550895,1773883681657,596.78,0.00030136,120]
[408550896,1773883684324,500.0,0.00030136,120]
[408550897,1773883689728,500.0,0.00030136,120]
[408550898,1773883692843,604.86,0.00030136,120]
[408550899,1773883697307,680.48,0.00030136,120]
[408550900,1773883704696,1004.41,0.00030136,120]
[408550901,1773883708286,500.0,0.00030136,120]
[408550902,1773883715175,1500.0,0.000119,2]
[408550903,1773883720721,1458.91,0.00030136,120]
[408550904,1773883724977,683.95,0.00030136,120]
[408550905,1773883725614,514.12,0.00030136,120]
[408550906,1773883725648,500.0,0.00030136,120]
[408550907,1773883730134,311.503061,0.0001,2]
[408550908,1773883738941,7521.866939,9.5e-05,3]
[408550909,1773883739172,10000.01,9.5e-05,3]
[408550910,1773883739194,2478.123061,9.5e-05,3]
[408550912,1773883741832,1614.34,0.00030136,120]
[408550913,1773883745481,500.0,0.00030136,120]
[408550914,1773883747126,500.0,0.00030136,120]
[408550915,1773883751102,500.0,0.00030136,120]
[408550916,1773883757067,500.0,0.00030136,120]
[408550917,1773883771923,500.0,0.00030136,120]
[408550918,1773883786077,606.1,0.00030136,120]
[408550919,1773883797099,500.0,0.00030136,120]
[408550920,1773883803206,200.0,0.000119,2]
[408550921,1773883803477,500.0,0.00030136,120]
[408550922,1773883807201,153.7620171,0.00030136,120]
[408550923,1773883809221,222.39204629,0.00030136,120]
[408550924,1773883811504,500.0,0.00030136,120]
[408550925,1773883813184,168.92944667,0.00030136,120]
[408550926,1773883815198,280.36413762,0.00030136,120]
[408550927,1773883816823,193.91515427,0.0003013,120]
[408550928,1773883816965,276.11176809,0.00030136,120]
[408550929,1773883817160,161.50889264,0.00030136,120]
[408550930,1773883818271,500.0,0.00030136,120]
[408550931,1773883819289,154.81380474,0.00030136,120]
[408550932,1773883823192,164.94402947,0.00030136,120]
[408550935,1773883828375,500.0,0.00030136,120]
[408550936,1773883829484,326.97053522,0.00030136,120]
[408550937,1773883829537,521.89656238,0.00030136,120]
[408550938,1773883829916,486.47143599,0.00030136,120]
[408550966,1773883831566,381.91172018,0.00030136,120]
[408550970,1773883831612,-252.0,0.00012503,2]
[408550971,1773883831622,-166.66,0.00012503,2]
[408550972,1773883831632,-49.73100933,0.00012543,2]
[408550974,1773883831643,-200.26899067,0.00012543,2]
[408550976,1773883831652,-379.71573396,0.000126,4]
[408550978,1773883831664,-20.28426604,0.000126,4]
[408550980,1773883831673,-166.66,0.00012631,2]
[408550982,1773883831683,-1116.47916477,0.00012658,2]
[408550986,1773883831707,-483.52083523,0.00012658,2]
[408550988,1773883831716,-300.0,0.00012675,2]
[408550990,1773883831725,-300.0,0.00012675,2]
[408550992,1773883831734,-176.02162601,0.00012675,2]
[408550994,1773883831747,-1023.97837399,0.00012675,2]
[408550996,1773883831757,-300.0,0.00012675,2]
[408550998,1773883831766,-4143.3566,0.00012677,2]
[408551000,1773883831775,-2500.0,0.00012677,2]
[408551001,1773883831784,-150.0,0.00012684,2]
[408551002,1773883831793,-153.07499793,0.00012685,2]
[408551003,1773883831804,-3845.42137575,0.00012685,2]
[408551004,1773883831816,-304.66963712,0.00012685,2]
[408551005,1773883831825,-4020.91331568,0.00012685,2]
[408551006,1773883831834,-750.68453785,0.00012685,2]
[408551007,1773883831844,-900.0,0.000127,4]
[408551008,1773883831860,-284.46836826,0.00012767,2]
[408551009,1773883831871,-500.0,0.0001277,2]
[408551010,1773883831882,-181.75906438,0.0001277,2]
[408551011,1773883831893,-500.0,0.00012773,2]
[408551012,1773883831903,-501.38283497,0.00012773,2]
[408551013,1773883831912,-500.0,0.00012773,2]
[408551014,1773883831922,-500.0,0.00012773,2]
[408551015,1773883831931,-500.0,0.00012776,2]
[408551016,1773883831940,-606.84626549,0.00012776,2]
[408551017,1773883831950,-500.0,0.00012776,2]
[408551018,1773883831961,-500.0,0.00012776,2]
[408551019,1773883831972,-500.0,0.00012776,2]
[408551020,1773883831982,-297.15402119,0.00012776,2]
[408551021,1773883831992,-500.0,0.00012776,2]
[408551022,1773883832004,-500.0,0.00012776,2]
[408551023,1773883832013,-500.0,0.00012776,2]
[408551024,1773883832022,-500.0,0.00012776,2]
[408551025,1773883832032,-500.0,0.00012776,2]
[408551026,1773883832042,-500.0,0.00012776,2]
[408551027,1773883832051,-500.0,0.00012776,2]
[408551028,1773883832061,-500.0,0.00012776,2]
[408551029,1773883832069,-500.0,0.00012776,2]
[408551030,1773883832079,-500.0,0.00012776,2]
[408551031,1773883832089,-460.82751952,0.00012776,2]
[408551032,1773883832100,-500.0,0.00012776,2]
[408551033,1773883832109,-500.0,0.00012776,2]
[408551034,1773883832119,-500.0,0.00012776,2]
[408551035,1773883832128,-500.0,0.00012776,2]
[408551036,1773883832137,-500.0,0.00012776,2]
[408551037,1773883832147,-500.0,0.00012776,2]
[408551038,1773883832156,-500.0,0.00012776,2]
[408551039,1773883832166,-500.0,0.00012776,2]
[408551040,1773883832175,-500.0,0.00012776,2]
[408551041,1773883832185,-500.0,0.00012776,2]
[408551042,1773883832195,-500.0,0.00012776,2]
[408551043,1773883832205,-500.0,0.00012776,2]
[408551044,1773883832215,-500.0,0.00012776,2]
[408551045,1773883832225,-500.0,0.00012776,2]
[408551046,1773883832234,-500.0,0.00012776,2]
[408551047,1773883832244,-500.0,0.00012776,2]
[408551048,1773883832253,-500.0,0.00012776,2]
[408551049,1773883832263,-500.0,0.00012776,2]
[408551050,1773883832273,-500.0,0.00012776,2]
[408551051,1773883832282,-500.0,0.00012776,2]
[408551052,1773883832293,-500.0,0.00012776,2]
[408551053,1773883832303,-500.0,0.00012776,2]
[408551054,1773883832313,-500.0,0.00012776,2]
[408551055,1773883832324,-500.0,0.00012776,2]
[408551056,1773883832335,-500.0,0.00012776,2]
[408551057,1773883832345,-500.0,0.00012776,2]
[408551058,1773883832356,-500.0,0.00012776,2]
[408551059,1773883832365,-500.0,0.00012776,2]
[408551060,1773883832375,-500.0,0.00012776,2]
[408551061,1773883832385,-500.0,0.00012776,2]
[408551062,1773883832394,-500.0,0.00012776,2]
[408551063,1773883832403,-500.0,0.00012776,2]
[408551064,1773883832413,-500.0,0.00012776,2]
[408551065,1773883832422,-500.0,0.00012776,2]
[408551066,1773883832432,-500.0,0.00012776,2]
[408551067,1773883832443,-17424.35332506,0.00012777,2]
[408551068,1773883832503,405.08880573,0.00030136,120]
[408551069,1773883833057,173.79992917,0.00030136,120]
[408551070,1773883833397,280.04491385,0.00030136,120]
[408551071,1773883834359,153.95276929,0.00030136,120]
[408551072,1773883835118,40628.1,0.00030136,120]
[408551073,1773883835659,279.59788038,0.00030136,120]
[408551075,1773883837395,-500.0,0.00012776,2]
[408551076,1773883837406,-500.0,0.00012776,2]
[408551077,1773883837417,-500.0,0.00012776,2]
[408551078,1773883837426,-500.0,0.00012776,2]
[408551079,1773883837437,-500.0,0.00012776,2]
[408551080,1773883837449,-500.0,0.00012776,2]
[408551081,1773883837459,-31.01772585,0.00012776,2]
[408551082,1773883837584,290.05487754,0.00030136,120]
[408551083,1773883837627,-518.98227415,0.00012776,2]
[408551086,1773883837642,-62.15785265,0.00012776,2]
[408551087,1773883837653,-340.64224758,0.00012776,2]
[408551088,1773883837664,-97.19989977,0.00012776,2]
[408551089,1773883837673,-500.0,0.00012776,2]
[408551090,1773883837682,-80.42316957,0.00012776,2]
[408551100,1773883837825,574.36,0.00030136,120]
[408551111,1773883839551,-419.57683043,0.00012776,2]
[408551112,1773883839561,-500.0,0.00012776,2]
[408551113,1773883839572,-500.0,0.00012776,2]
[408551115,1773883839581,-500.0,0.00012776,2]
[408551117,1773883839590,-4.78440361,0.00012776,2]
[408551119,1773883839602,-495.21559639,0.00012776,2]
[408551121,1773883839612,-500.0,0.00012776,2]
[408551122,1773883839621,-412.30759408,0.00012776,2]
[408551123,1773883839964,-87.69240592,0.00012776,2]
[408551124,1773883839974,-249.10044068,0.00012776,2]
[408551125,1773883840068,-250.89955932,0.00012776,2]
[408551127,1773883840078,-500.0,0.00012776,2]
[408551128,1773883840087,-500.0,0.00012776,2]
[408551129,1773883840099,-7850.90929747,0.00012777,2]
[408551130,1773883840111,-1810.91461116,0.00012777,2]
[408551141,1773883842535,-361.40326713,0.00012777,2]
[408551142,1773883842619,-416022.42861426,0.00012777,2]
[408551143,1773883842737,-537.93968959,0.00012777,2]
[408551234,1773883844355,224.06559525,0.00030136,120]
[408551235,1773883844534,184.74953682,0.00030136,120]
[408551236,1773883845217,166.92,0.00012382,2]
[408551237,1773883845692,-1682.57074988,0.00012677,2]
[408551238,1773883845993,-505.0,0.00012677,2]
[408551239,1773883846004,-312.42925012,0.00012677,2]
[408551240,1773883846014,-167.83553858,0.00012777,2]
[408551241,1773883846025,-14751.43496145,0.00012777,2]
[408551242,1773883846035,-467.74106694,0.00012777,2]
[408551243,1773883846047,-601.71500188,0.00012777,2]
[408551244,1773883846058,-155673.80806267,0.00012777,2]
[408551245,1773883846069,-1727.09396171,0.00012777,2]
[408551248,1773883846128,170.07378443,0.00030136,120]
[408551377,1773883850948,1014.17,0.00030136,120]
[408551378,1773883851186,248.71485729,0.00030136,120]
[408551379,1773883856083,500.0,0.00030136,120]
[408551380,1773883858926,500.0,0.00030136,120]
[408551381,1773883861835,10000.01,0.0001265,2]
[408551382,1773883861857,10000.01,0.0001265,2]